fUSD/lending_fUSD_20240523
["ID","MTS","AMOUNT","RATE_DAILY","PERIOD"]
[327799684,1716490256327,-444.58991477,0.00022465,2]
[327799685,1716490256337,-622.94,0.00022465,2]
[327799686,1716490256347,-500.0,0.00022465,2]
[327799687,1716490256367,-500.0,0.00022465,2]
[327799688,1716490256379,-500.0,0.00022465,2]
[327799689,1716490256389,-500.0,0.00022465,2]
[327799690,1716490256398,-500.0,0.00022465,2]
[327799691,1716490256412,-601.85905779,0.00022465,2]
[327799692,1716490256422,-150.79495141,0.000225,2]
[327799693,1716490256433,-3615.6437527,0.00022506,2]
[327799694,1716490256443,-2000.0,0.00022602,2]
[327799695,1716490256453,-411.0,0.00022626,2]
[327799696,1716490256463,-153.45398174,0.00022631,2]
[327799697,1716490256473,-7684.89,0.00022634,2]
[327799698,1716490256483,-500.0,0.00022737,2]
[327799699,1716490256492,-500.0,0.00022737,2]
[327799700,1716490256502,-500.0,0.00022737,2]
[327799701,1716490256512,-500.0,0.00022737,2]
[327799702,1716490256522,-500.0,0.00022737,2]
[327799703,1716490256531,-500.0,0.00022737,2]
[327799704,1716490256541,-748.23,0.00022737,2]
[327799705,1716490256551,-500.0,0.00022737,2]
[327799706,1716490256561,-500.0,0.00022737,2]
[327799707,1716490256571,-500.0,0.00022737,2]
[327799708,1716490256580,-500.0,0.00022737,2]
[327799709,1716490256590,-500.0,0.00022737,2]
[327799710,1716490256601,-500.0,0.00022737,2]
[327799711,1716490256612,-500.0,0.00022737,2]
[327799712,1716490256622,-500.0,0.00022737,2]
[327799713,1716490256632,-551.43,0.00022737,2]
[327799714,1716490256642,-500.0,0.00022737,2]
[327799715,1716490256653,-500.0,0.00022737,2]
[327799716,1716490256663,-772.88,0.00022737,2]
[327799717,1716490256672,-500.0,0.00022737,2]
[327799718,1716490256682,-500.0,0.00022737,2]
[327799719,1716490256691,-500.0,0.00022737,2]
[327799720,1716490256701,-556.32,0.00022737,2]
[327799721,1716490256710,-8506.29,0.00022737,2]
[327799722,1716490256720,-500.0,0.00022737,2]
[327799723,1716490256730,-1124.72,0.00022737,2]
[327799724,1716490256740,-207.33,0.00022737,2]
[327799725,1716490256749,-500.0,0.00022737,2]
[327799726,1716490256764,-500.0,0.00022737,2]
[327799727,1716490256774,-168.03,0.00022737,2]
[327799728,1716490256784,-500.0,0.00022737,2]
[327799729,1716490256795,-500.0,0.00022737,2]
[327799730,1716490256804,-558.52,0.00022737,2]
[327799731,1716490256814,-500.0,0.00022737,2]
[327799732,1716490256824,-500.0,0.00022737,2]
[327799733,1716490256836,-500.0,0.00022737,2]
[327799734,1716490256845,-500.0,0.00022737,2]
[327799735,1716490256855,-500.0,0.00022737,2]
[327799736,1716490256864,-500.0,0.00022737,2]
[327799737,1716490256873,-500.0,0.00022737,2]
[327799738,1716490256883,-500.0,0.00022737,2]
[327799739,1716490256892,-500.0,0.00022737,2]
[327799740,1716490256903,-500.0,0.00022737,2]
[327799741,1716490256912,-500.0,0.00022737,2]
[327799742,1716490256921,-500.0,0.00022737,2]
[327799743,1716490256931,-500.0,0.00022737,2]
[327799744,1716490256940,-500.0,0.00022737,2]
[327799745,1716490256950,-500.0,0.00022737,2]
[327799746,1716490256959,-500.0,0.00022737,2]
[327799747,1716490256969,-1337.79,0.00022737,2]
[327799748,1716490256978,-531.68732656,0.00022737,2]
[327799749,1716490256988,-500.0,0.00022737,2]
[327799750,1716490257002,-500.0,0.00022737,2]
[327799751,1716490257012,-569.32,0.00022737,2]
[327799752,1716490257021,-500.0,0.00022737,2]
[327799753,1716490257030,-500.0,0.00022737,2]
[327799754,1716490257040,-500.0,0.00022737,2]
[327799755,1716490257050,-1767.64,0.00022737,2]
[327799756,1716490257059,-500.0,0.00022737,2]
[327799757,1716490257069,-500.0,0.00022737,2]
[327799758,1716490257079,-500.0,0.00022737,2]
[327799759,1716490257088,-500.0,0.00022737,2]
[327799760,1716490257099,-500.0,0.00022737,2]
[327799761,1716490257108,-500.0,0.00022737,2]
[327799762,1716490257118,-500.0,0.00022737,2]
[327799763,1716490257128,-584.29,0.00022737,2]
[327799764,1716490257137,-500.0,0.00022737,2]
[327799765,1716490257148,-500.0,0.00022737,2]
[327799766,1716490257161,-500.0,0.00022737,2]
[327799767,1716490257170,-537.11,0.00022737,2]
[327799768,1716490257179,-960.18,0.00022737,2]
[327799769,1716490257190,-500.0,0.00022737,2]
[327799770,1716490257199,-500.0,0.00022737,2]
[327799771,1716490257209,-500.0,0.00022739,2]
[327799772,1716490257219,-682.74,0.00022739,2]
[327799773,1716490257229,-500.0,0.00022739,2]
[327799774,1716490257240,-671.93,0.00022739,2]
[327799775,1716490257251,-500.0,0.00022739,2]
[327799776,1716490257260,-500.0,0.00022739,2]
[327799777,1716490257270,-593.01,0.00022739,2]
[327799778,1716490257280,-500.0,0.00022739,2]
[327799779,1716490257290,-500.0,0.00022739,2]
[327799780,1716490257299,-500.0,0.00022739,2]
[327799781,1716490257309,-236.96,0.00022739,2]
[327799782,1716490257319,-513.34,0.00022739,2]
[327799783,1716490257328,-293.19,0.00022739,2]
[327799784,1716490257339,-500.0,0.00022739,2]
[327799785,1716490257348,-500.0,0.00022739,2]
[327799786,1716490257357,-500.0,0.00022739,2]
[327799787,1716490257367,-500.0,0.00022739,2]
[327799788,1716490257376,-500.0,0.00022739,2]
[327799789,1716490257386,-500.0,0.00022739,2]
[327799790,1716490257395,-500.0,0.00022739,2]
[327799791,1716490257406,-500.0,0.00022739,2]
[327799792,1716490257416,-500.0,0.00022739,2]
[327799793,1716490257425,-500.0,0.00022739,2]
[327799794,1716490257434,-500.0,0.00022739,2]
[327799795,1716490257444,-500.0,0.00022739,2]
[327799796,1716490257453,-319.91737512,0.00022739,2]
[327799797,1716490257462,-500.0,0.00022739,2]
[327799798,1716490257472,-646.9,0.00022739,2]
[327799799,1716490257481,-500.0,0.00022739,2]
[327799800,1716490257491,-150.0,0.00022739,2]
[327799801,1716490257500,-500.0,0.00022739,2]
[327799802,1716490257510,-500.0,0.00022739,2]
[327799803,1716490257519,-500.0,0.00022739,2]
[327799804,1716490257529,-500.0,0.00022739,2]
[327799805,1716490257539,-161.73,0.00022739,2]
[327799806,1716490257548,-811.58,0.00022739,2]
[327799807,1716490257558,-500.0,0.00022739,2]
[327799808,1716490257567,-500.0,0.00022739,2]
[327799809,1716490257576,-500.0,0.00022739,2]
[327799810,1716490257586,-500.0,0.00022739,2]
[327799811,1716490257595,-635.31,0.00022739,2]
[327799812,1716490257604,-622.71023049,0.00022739,2]
[327799813,1716490257614,-500.0,0.00022739,2]
[327799814,1716490257624,-500.0,0.00022739,2]
[327799815,1716490257634,-275.77140826,0.00022739,2]
[327799816,1716490257644,-500.0,0.00022739,2]
[327799817,1716490257657,-500.0,0.00022739,2]
[327799818,1716490257667,-619.1287453,0.00022739,2]
[327799819,1716490257677,-500.0,0.00022739,2]
[327799820,1716490257686,-500.0,0.00022739,2]
[327799821,1716490257695,-500.0,0.00022739,2]
[327799822,1716490257706,-871.28,0.00022739,2]
[327799823,1716490257715,-500.0,0.00022739,2]
[327799824,1716490257724,-500.0,0.00022739,2]
[327799825,1716490257734,-500.0,0.00022739,2]
[327799826,1716490257744,-3609.82,0.00022739,2]
[327799827,1716490257756,-500.0,0.00022739,2]
[327799828,1716490257767,-500.0,0.00022739,2]
[327799829,1716490257776,-500.0,0.00022739,2]
[327799830,1716490257786,-299.13,0.00022739,2]
[327799831,1716490257797,-500.0,0.00022739,2]
[327799832,1716490257811,-500.0,0.00022739,2]
[327799833,1716490257822,-599.8746067,0.00022739,2]
[327799834,1716490257833,-500.0,0.00022739,2]
[327799835,1716490257844,-500.0,0.00022739,2]
[327799836,1716490257854,-413.47042211,0.00022739,2]
[327799837,1716490257864,-500.0,0.00022739,2]
[327799838,1716490257874,-264.45278324,0.00022739,2]
[327799839,1716490257883,-500.0,0.00022739,2]
[327799840,1716490257893,-1672.88,0.00022739,2]
[327799841,1716490257903,-824.02,0.00022739,2]
[327799842,1716490257913,-500.0,0.00022739,2]
[327799843,1716490257923,-922.79,0.00022739,2]
[327799844,1716490257932,-500.0,0.00022739,2]
[327799845,1716490257942,-500.0,0.00022739,2]
[327799846,1716490257952,-500.0,0.00022739,2]
[327799847,1716490257961,-1199.04,0.00022739,2]
[327799848,1716490257971,-1216.26,0.00022739,2]
[327799849,1716490257981,-500.0,0.00022739,2]
[327799850,1716490257990,-500.0,0.00022739,2]
[327799851,1716490258000,-702.93,0.00022739,2]
[327799852,1716490258010,-500.0,0.00022739,2]
[327799853,1716490258020,-929.06,0.00022739,2]
[327799854,1716490258030,-180.48467895,0.00022739,2]
[327799855,1716490258039,-500.0,0.00022739,2]
[327799856,1716490258048,-500.0,0.00022739,2]
[327799857,1716490258057,-500.0,0.00022739,2]
[327799858,1716490258067,-500.0,0.00022739,2]
[327799859,1716490258077,-500.0,0.00022739,2]
[327799860,1716490258086,-500.0,0.00022739,2]
[327799861,1716490258096,-500.0,0.00022739,2]
[327799862,1716490258105,-659.73,0.00022739,2]
[327799863,1716490258114,-500.0,0.00022739,2]
[327799864,1716490258124,-371.83780942,0.00022739,2]
[327799865,1716490258133,-500.0,0.00022739,2]
[327799866,1716490258142,-849.63,0.00022739,2]
[327799867,1716490258153,-507.72,0.00022739,2]
[327799868,1716490258162,-500.0,0.00022739,2]
[327799869,1716490258171,-500.0,0.00022739,2]
[327799870,1716490258180,-784.25,0.00022739,2]
[327799871,1716490258190,-500.0,0.00022739,2]
[327799872,1716490258199,-525.39,0.00022739,2]
[327799873,1716490258208,-500.0,0.00022739,2]
[327799874,1716490258218,-500.0,0.00022739,2]
[327799875,1716490258227,-1140.68,0.00022739,2]
[327799876,1716490258237,-970.62,0.00022739,2]
[327799877,1716490258247,-500.0,0.00022739,2]
[327799878,1716490258256,-577.1,0.00022739,2]
[327799879,1716490258266,-620.04,0.00022739,2]
[327799880,1716490258275,-535.9,0.00022739,2]
[327799881,1716490258284,-500.0,0.00022739,2]
[327799882,1716490258293,-500.0,0.00022739,2]
[327799883,1716490258303,-500.0,0.00022739,2]
[327799884,1716490258312,-1206.58,0.00022739,2]
[327799885,1716490258321,-500.0,0.00022739,2]
[327799886,1716490258330,-500.0,0.00022739,2]
[327799887,1716490258339,-500.0,0.00022739,2]
[327799888,1716490258348,-500.0,0.00022739,2]
[327799889,1716490258357,-532.7,0.00022739,2]
[327799890,1716490258368,-500.0,0.00022739,2]
[327799891,1716490258378,-500.0,0.00022739,2]
[327799892,1716490258387,-500.0,0.00022739,2]
[327799893,1716490258397,-1526.56,0.00022739,2]
[327799894,1716490258408,-500.0,0.00022739,2]
[327799895,1716490258418,-500.0,0.00022739,2]
[327799896,1716490258427,-601.69,0.00022739,2]
[327799897,1716490258436,-500.0,0.00022739,2]
[327799898,1716490258446,-500.0,0.00022739,2]
[327799899,1716490258455,-500.0,0.00022739,2]
[327799900,1716490258464,-500.0,0.00022739,2]
[327799901,1716490258473,-500.0,0.00022739,2]
[327799902,1716490258483,-1738.28,0.00022739,2]
[327799903,1716490258492,-269.15951666,0.00022739,2]
[327799904,1716490258564,257.18,0.00016277,2]
[327799905,1716490258630,257.18,0.00016281,2]
[327799906,1716490258695,257.18,0.00016285,2]
[327799907,1716490258756,257.18,0.00016289,2]
[327799908,1716490258822,257.18,0.00016294,2]
[327799909,1716490258892,257.18,0.00016298,2]
[327799910,1716490258956,257.18,0.00016302,2]
[327799911,1716490259016,257.18,0.00016307,2]
[327799912,1716490259076,257.18,0.00016311,2]
[327799913,1716490259136,257.18,0.00016315,2]
[327799914,1716490262727,-6167.89787081,0.00017221,2]
[327799915,1716490262737,-2503.60644351,0.00017255,2]
[327799916,1716490262748,-230.84048334,0.00022739,2]
[327799917,1716490262761,-500.0,0.00022739,2]
[327799918,1716490262770,-500.0,0.00022739,2]
[327799919,1716490262779,-500.0,0.00022739,2]
[327799920,1716490262789,-2013.06,0.00022739,2]
[327799921,1716490262799,-500.0,0.00022739,2]
[327799922,1716490262808,-500.0,0.00022739,2]
[327799923,1716490262817,-622.94,0.00022739,2]
[327799924,1716490262827,-500.0,0.00022739,2]
[327799925,1716490262839,-500.0,0.00022739,2]
[327799926,1716490262848,-500.0,0.00022739,2]
[327799927,1716490262857,-620.27755433,0.00022798,2]
[327799928,1716490262867,-151.89057571,0.00022847,2]
[327799929,1716490262876,-2200.0,0.00022876,2]
[327799930,1716490262885,-166.66666667,0.00022882,2]
[327799931,1716490262895,-500.0,0.00022888,2]
[327799932,1716490262908,-589.27,0.00022888,2]
[327799933,1716490262918,-102457.57137132,0.00022898,2]
[327799934,1716490262928,-102457.5713713,0.00022898,2]
[327799935,1716490262937,-102457.5713713,0.00022898,2]
[327799936,1716490263145,-11031.97209031,0.00022898,2]
[327799937,1716490263162,-1124.64785801,0.00022898,2]
[327799938,1716490263334,958.48622308,0.00016359,2]
[327799939,1716490322079,155.0,0.00017,2]
[327799940,1716490356110,1802.9862,0.000169,2]
[327799942,1716490404422,1000.0,0.00030959,120]
[327799943,1716490479775,306.48466096,0.00017,2]
[327799944,1716490483588,378.30951817,0.00017,2]
[327799945,1716490489341,210.42228446,0.00017,2]
[327799946,1716490494738,536.10998017,0.00017,2]
[327799948,1716490532708,162.22,0.00013973,2]
[327799949,1716490621355,2010.83681658,0.00017,2]
[327799950,1716490629215,267.92769369,0.00017,2]
[327799951,1716490735364,210.42228446,0.00017,2]
[327799952,1716490739814,306.48466096,0.00017,2]
[327799955,1716490849534,200.0,0.000159,2]
[327799956,1716490994887,210.42228446,0.00017,2]
[327799958,1716491147731,493116.78624212,0.000285,30]
[327799976,1716491329643,151.06,0.00013973,2]
[327799992,1716491400787,1325.12,0.00016724,2]
[327799993,1716491431835,-510.76970316,0.00017001,2]
[327800014,1716491431845,-1201.80155481,0.00017219,2]
[327800015,1716491432079,-3077.84393939,0.00017219,2]
[327800016,1716491432088,-156.75017604,0.0001722,2]
[327800017,1716491432098,-273.01392061,0.0001722,2]
[327800018,1716491432110,-150.0,0.00017533,2]
[327800019,1716491432121,-150.0,0.00017533,2]
[327800020,1716491432130,-500.0,0.00018865,2]
[327800021,1716491432139,-358.83,0.00018895,2]
[327800022,1716491432150,-499.99,0.00018895,2]
[327800023,1716491432159,-23900.0,0.0001892,2]
[327800024,1716491432168,-150.99,0.0001892,2]
[327800025,1716491432177,-299.99,0.0001892,4]
[327800026,1716491432187,-200.0,0.00018939,2]
[327800027,1716491432196,-921.88,0.00018951,2]
[327800028,1716491432205,-168.72,0.00018958,2]
[327800029,1716491432215,-1325.12,0.00018987,2]
[327800030,1716491432224,-155.0,0.00018998,2]
[327800031,1716491432233,-318.10175994,0.00018998,2]
[327800032,1716491432243,-364.57392248,0.00018998,2]
[327800033,1716491432252,-1000.0,0.00018999,2]
[327800034,1716491432262,-268.17734521,0.00018999,2]
[327800035,1716491432271,-1949.91,0.00019,2]
[327800036,1716491432281,-458.87,0.00019,2]
[327800037,1716491432291,-452.97,0.00019,2]
[327800038,1716491432300,-19999.99,0.00019,2]
[327800039,1716491432310,-1206.97,0.00019,2]
[327800040,1716491432319,-8306.82,0.00019,2]
[327800041,1716491432329,-155.0,0.00019,2]
[327800042,1716491432339,-519.64,0.00019016,2]
[327800044,1716491432348,-475.99,0.00019041,2]
[327800047,1716491432358,-475.99,0.00019093,2]
[327800050,1716491432371,-740.18,0.00019103,2]
[327800053,1716491432380,-29999.99,0.00019117,2]
[327800056,1716491432389,-150.0,0.00019118,2]
[327800059,1716491432398,-211.2,0.00019138,2]
[327800062,1716491432407,-250.0,0.00019143,2]
[327800065,1716491432416,-475.99,0.00019146,2]
[327800067,1716491432426,-475.99,0.00019198,2]
[327800069,1716491432436,-475.99,0.0001925,2]
[327800071,1716491432446,-250.0,0.00019276,2]
[327800073,1716491432456,-210.0,0.00019286,2]
[327800075,1716491432465,-210.0,0.00019286,2]
[327800077,1716491432475,-475.99,0.00019302,2]
[327800078,1716491432486,-475.99,0.00019355,2]
[327800080,1716491432495,-475.99,0.00019407,2]
[327800081,1716491432505,-475.99,0.00019459,2]
[327800082,1716491432515,-475.99,0.00019511,2]
[327800083,1716491432525,-475.99,0.00019563,2]
[327800084,1716491432534,-475.99,0.00019616,2]
[327800085,1716491432544,-475.99,0.00019668,2]
[327800086,1716491432554,-475.99,0.0001972,2]
[327800087,1716491432563,-475.99,0.00019772,2]
[327800088,1716491432573,-475.99,0.00019825,2]
[327800089,1716491432582,-475.99,0.00019877,2]
[327800090,1716491432591,-155.19,0.00019905,2]
[327800091,1716491432601,-475.99,0.00019929,2]
[327800092,1716491432610,-475.99,0.00019981,2]
[327800093,1716491432625,-2500.0,0.00019992,3]
[327800094,1716491432633,-155.19,0.00020005,2]
[327800095,1716491432642,-475.99,0.00020033,2]
[327800096,1716491432652,-2500.0,0.00020034,3]
[327800097,1716491432661,-309.81531032,0.0002009,2]
[327800098,1716491432671,-533.23069534,0.00020132,2]
[327800099,1716491432680,-263.14041655,0.00020132,2]
[327800100,1716491432689,-200.62284159,0.00020132,2]
[327800101,1716491432698,-1000.0,0.00020133,2]
[327800102,1716491432707,-363.44452698,0.00020133,2]
[327800103,1716491432716,-500.0,0.00020136,2]
[327800104,1716491432726,-1100.0,0.00020136,2]
[327800105,1716491432735,-500.0,0.00020136,2]
[327800106,1716491432745,-900.0,0.00020136,2]
[327800107,1716491432755,-151.06,0.00020447,2]
[327800108,1716491432764,-957.76,0.00020564,2]
[327800109,1716491432774,-1100.0,0.00020684,2]
[327800110,1716491432784,-900.0,0.00020684,2]
[327800111,1716491432793,-155.19873687,0.00020747,2]
[327800112,1716491432803,-434.46816619,0.00020898,2]
[327800113,1716491432812,-304652.02713019,0.00020899,2]
[327800114,1716491432825,-30020.07452727,0.00020899,2]
[327800115,1716491432836,-4666.6,0.00020899,2]
[327800116,1716491432968,-768.94693813,0.00020899,2]
[327800117,1716491432980,-866.7628267,0.00020899,2]
[327800118,1716491432991,-2464.76794777,0.00020899,2]
[327800123,1716491439858,-614.65060955,0.00020898,2]
[327800125,1716491439868,-1055.65222774,0.00020899,2]
[327800126,1716491439883,-675.40068488,0.00020899,2]
[327800128,1716491439895,-21421.40029484,0.00020899,2]
[327800130,1716491439906,-1677.75590673,0.00020899,2]
[327800131,1716491439916,-598.68874061,0.00020899,2]
[327800132,1716491439927,-25348.0221832,0.00020899,2]
[327800133,1716491439938,-23061.6768571,0.00020899,2]
[327800153,1716491442833,-673.98,0.00020899,2]
[327800154,1716491442863,-14583.73721679,0.00020899,2]
[327800155,1716491442878,-3727.59304734,0.00020899,2]
[327800156,1716491442889,-590.52212235,0.00020899,2]
[327800157,1716491442901,-7562.08482013,0.00020899,2]
[327800158,1716491442920,-334.97466615,0.00020899,2]
[327800159,1716491442931,-596.81372632,0.00020899,2]
[327800160,1716491442943,-2020.655,0.00020899,2]
[327800162,1716491443014,-641.56805154,0.00020899,2]
[327800164,1716491443025,-81957.02,0.00020899,2]
[327800174,1716491443491,-9806.57308433,0.00020899,2]
[327800179,1716491443660,-20214.3942,0.00020899,2]
[327800181,1716491443712,-3136.74695174,0.00020899,2]
[327800182,1716491443819,-310.55385286,0.00020899,2]
[327800183,1716491443938,-15092.93882424,0.00020899,2]
[327800184,1716491444062,-110483.18354901,0.00020899,2]
[327800185,1716491444173,-400.0,0.000209,7]
[327800187,1716491444271,-318.40256533,0.000209,2]
[327800188,1716491444286,-2401.86661478,0.000209,2]
[327800189,1716491444296,-183.05942095,0.00020936,2]
[327800190,1716491444306,-152.07,0.00020936,2]
[327800191,1716491444315,-750.0,0.00021,2]
[327800192,1716491444325,-171.29,0.00021115,2]
[327800193,1716491444335,-293.0,0.00021215,2]
[327800194,1716491444345,-500.0,0.00021232,2]
[327800195,1716491444354,-500.0,0.00021232,2]
[327800196,1716491444363,-1100.0,0.00021232,2]
[327800197,1716491444372,-900.0,0.00021232,2]
[327800198,1716491444382,-1325.12,0.00021251,2]
[327800199,1716491444391,-164.03435616,0.00021598,2]
[327800200,1716491444401,-358.83,0.00021635,2]
[327800201,1716491444410,-1100.0,0.0002178,2]
[327800202,1716491444420,-900.0,0.0002178,2]
[327800203,1716491444430,-303.33822473,0.00021817,2]
[327800204,1716491444439,-6785.4240513,0.00021817,2]
[327800205,1716491444452,-421.08218031,0.00021817,2]
[327800242,1716491446773,-3582.47969998,0.00021817,2]
[327800243,1716491446782,-170.15696502,0.00021817,2]
[327800244,1716491446792,-800.0,0.000219,7]
[327800245,1716491446802,-884.3653377,0.000219,2]
[327800246,1716491446814,-527.90230219,0.000219,2]
[327800247,1716491446823,-152.07,0.00021907,2]
[327800248,1716491446832,-177.08401672,0.00021913,2]
[327800249,1716491446842,-249.22079422,0.00021913,2]
[327800250,1716491446851,-155.27279243,0.00021913,2]
[327800251,1716491446860,-194.5993689,0.00021913,2]
[327800252,1716491446869,-229.61462966,0.00021915,2]
[327800253,1716491446880,-984.52033866,0.00021915,2]
[327800254,1716491446889,-2001.77490136,0.00021915,2]
[327800255,1716491446899,-1044.74085586,0.00021916,2]
[327800256,1716491446910,-3381.74264492,0.00021916,2]
[327800257,1716491446919,-1002.0039,0.00021916,2]
[327800258,1716491446928,-768.0,0.00021917,2]
[327800259,1716491446937,-500.0,0.00021917,2]
[327800260,1716491446946,-518.87157633,0.00021917,2]
[327800261,1716491446956,-500.0,0.00021917,2]
[327800262,1716491446965,-302.58187875,0.00021917,2]
[327800263,1716491446976,-197.41812125,0.00021917,2]
[327800264,1716491446985,-500.0,0.00021917,2]
[327800265,1716491446994,-500.0,0.00021917,2]
[327800266,1716491447004,-500.0,0.00021917,2]
[327800267,1716491447013,-505.38907779,0.00021917,2]
[327800268,1716491447023,-507.52703152,0.00021917,2]
[327800269,1716491447033,-500.0,0.00021917,2]
[327800270,1716491447042,-500.0,0.00021917,2]
[327800271,1716491447051,-500.0,0.00021917,2]
[327800272,1716491447060,-500.0,0.00021917,2]
[327800273,1716491447068,-517.56945506,0.00021917,2]
[327800274,1716491447082,-202.09631438,0.00021917,2]
[327800275,1716491447094,-297.90368562,0.00021917,2]
[327800276,1716491447104,-500.0,0.00021917,2]
[327800277,1716491447119,-500.0,0.00021917,2]
[327800278,1716491447129,-500.0,0.00021917,2]
[327800279,1716491447138,-508.33267923,0.00021917,2]
[327800280,1716491447148,-500.0,0.00021917,2]
[327800281,1716491447158,-500.0,0.00021917,2]
[327800282,1716491447168,-500.0,0.00021917,2]
[327800283,1716491447177,-500.0,0.00021917,2]
[327800284,1716491447186,-118.28166515,0.00021917,2]
[327800285,1716491447201,-381.71833485,0.00021917,2]
[327800286,1716491447212,-500.0,0.00021917,2]
[327800287,1716491447221,-517.72086128,0.00021917,2]
[327800288,1716491447231,-500.0,0.00021917,2]
[327800289,1716491447240,-500.0,0.00021917,2]
[327800290,1716491447250,-500.0,0.00021917,2]
[327800291,1716491447260,-500.0,0.00021917,2]
[327800292,1716491447269,-514.61963428,0.00021917,2]
[327800293,1716491447280,-500.0,0.00021917,2]
[327800294,1716491447290,-512.12821118,0.00021917,2]
[327800295,1716491447300,-500.0,0.00021917,2]
[327800296,1716491447310,-515.403976,0.00021917,2]
[327800297,1716491447320,-500.0,0.00021917,2]
[327800298,1716491447334,-629.04,0.00021917,2]
[327800299,1716491447344,-500.0,0.00021917,2]
[327800300,1716491447354,-510.96774023,0.00021917,2]
[327800301,1716491447364,-500.0,0.00021917,2]
[327800302,1716491447374,-500.0,0.00021917,2]
[327800303,1716491447385,-500.0,0.00021917,2]
[327800304,1716491447395,-504.70376447,0.00021917,2]
[327800305,1716491447404,-377.50619771,0.00021917,2]
[327800306,1716491447417,-127.35983102,0.00021917,2]
[327800307,1716491447426,-500.0,0.00021917,2]
[327800308,1716491447436,-70.30016898,0.00021917,2]
[327800316,1716491604823,1000.0,0.00030868,120]
[327800317,1716491635059,177.69,0.00025655,120]
[327800318,1716491635398,177.69,0.00028221,120]
[327800319,1716491635867,177.69,0.00030786,120]
[327800321,1716491688193,-800.0,0.00017252,2]
[327800325,1716491778950,154.28,0.00013973,2]
[327800330,1716492286661,151.0,0.00024824,120]
[327800334,1716492407366,176.49,0.00013973,2]
[327800335,1716492422441,151.26984567,0.00031,120]
[327800343,1716492632086,-155.0,0.00017043,2]
[327800345,1716492632096,-204.9936907,0.00017044,2]
[327800347,1716492632105,-244.89880581,0.00017045,2]
[327800350,1716492632117,-935.27056339,0.00017045,2]
[327800351,1716492632128,-496.42246787,0.00017048,2]
[327800353,1716492632137,-2795.78823885,0.00017048,2]
[327800356,1716492632147,-300.0,0.0001705,2]
[327800358,1716492632156,-150.0,0.0001705,2]
[327800360,1716492632166,-1516.77,0.00017051,2]
[327800362,1716492632175,-164.6263139,0.00017148,2]
[327800363,1716492632185,-164.62631389,0.00017667,2]
[327800364,1716492632194,-499.99,0.00017807,2]
[327800365,1716492632203,-164.62631389,0.00018186,2]
[327800366,1716492632213,-301.0,0.00018622,2]
[327800367,1716492632222,-164.62631389,0.00018704,2]
[327800368,1716492632232,-250.0,0.00018795,2]
[327800369,1716492632241,-1000.0,0.00018816,2]
[327800370,1716492632250,-150.0,0.00018891,2]
[327800371,1716492632259,-155.0,0.00019,2]
[327800372,1716492632269,-164.62631389,0.00019223,2]
[327800373,1716492632278,-1516.77,0.00019315,2]
[327800374,1716492632288,-1923.1545218,0.0001951,3]
[327800375,1716492632297,-23900.0,0.0001961,2]
[327800376,1716492632306,-2019.62,0.00019633,2]